[Event "Live Chess"]
[Site "Chess.com"]
[Date "2024.06.01"]
[Round "-"]
[White "upoe610"]
[Black "bobby_jamesFischer86"]
[Result "1-0"]
[WhiteElo "2209"]
[BlackElo "1617"]
[TimeControl "300"]
[EndTime "13:10:22 PDT"]
[Termination "upoe610 won by resignation"]

1. e4 {[%clk 0:04:50.2]} 1... c5 {[%clk 0:04:57.1]} 2. Nf3 {[%clk 0:04:49]} 2...
d6 {[%clk 0:04:53.4]} 3. d4 {[%clk 0:04:46.7]} 3... cxd4 {[%clk 0:04:34.2]} 4.
Nxd4 {[%clk 0:04:46.6]} 4... Nf6 {[%clk 0:04:32.9]} 5. Nc3 {[%clk 0:04:44.9]}
5... e6 {[%clk 0:04:28.7]} 6. Be3 {[%clk 0:04:39.4]} 6... Nc6 {[%clk 0:04:27.2]}
7. f3 {[%clk 0:04:31.9]} 7... Be7 {[%clk 0:04:21]} 8. Qd2 {[%clk 0:04:29.7]}
8... a6 {[%clk 0:04:06.7]} 9. O-O-O {[%clk 0:04:28.6]} 9... Qc7 {[%clk
0:04:05.2]} 10. Kb1 {[%clk 0:04:27.2]} 10... O-O {[%clk 0:04:03.8]} 11. g4
{[%clk 0:04:26.3]} 11... Nxd4 {[%clk 0:04:02.6]} 12. Bxd4 {[%clk 0:04:23.8]}
12... Nd7 {[%clk 0:04:02]} 13. Bd3 {[%clk 0:04:21.4]} 13... b5 {[%clk
0:03:57.7]} 14. Be3 {[%clk 0:04:19]} 14... Ne5 {[%clk 0:03:55.3]} 15. Be2 {[%clk
0:04:15.7]} 15... Nc4 {[%clk 0:03:51.1]} 16. Bxc4 {[%clk 0:04:14.5]} 16... bxc4
{[%clk 0:03:45.1]} 17. Bd4 {[%clk 0:04:10.6]} 17... Bb7 {[%clk 0:03:41.2]} 18.
h4 {[%clk 0:04:07]} 18... e5 {[%clk 0:03:39.6]} 19. Be3 {[%clk 0:04:05.4]} 19...
Rab8 {[%clk 0:03:34.8]} 20. Nd5 {[%clk 0:04:03.3]} 20... Bxd5 {[%clk 0:03:33.2]}
21. Qxd5 {[%clk 0:04:02.1]} 21... Qb7 {[%clk 0:03:15.4]} 22. Qxb7 {[%clk
0:04:00.8]} 22... Rxb7 {[%clk 0:03:13.8]} 23. Rd5 {[%clk 0:04:00.7]} 23... Rb5
{[%clk 0:03:01.3]} 24. Rhd1 {[%clk 0:03:58.5]} 24... Rfb8 {[%clk 0:02:59.4]} 25.
Rxb5 {[%clk 0:03:57]} 25... Rxb5 {[%clk 0:02:56.7]} 26. Kc1 {[%clk 0:03:55.8]}
26... f6 {[%clk 0:02:52.1]} 27. h5 {[%clk 0:03:54.6]} 27... h6 {[%clk
0:02:49.4]} 28. b3 {[%clk 0:03:51.3]} 28... cxb3 {[%clk 0:02:40.8]} 29. axb3
{[%clk 0:03:49.5]} 29... Kf7 {[%clk 0:02:37.7]} 30. Kb2 {[%clk 0:03:48.6]} 30...
Ke6 {[%clk 0:02:36.4]} 31. c4 {[%clk 0:03:47.2]} 31... Rb8 {[%clk 0:02:21.6]}
32. Kc3 {[%clk 0:03:47.1]} 32... Ra8 {[%clk 0:02:13.9]} 33. Ra1 {[%clk
0:03:46.2]} 33... a5 {[%clk 0:02:11]} 34. Ra4 {[%clk 0:03:45.1]} 34... Bd8
{[%clk 0:02:00.8]} 35. Kc2 {[%clk 0:03:41.9]} 35... Kd7 {[%clk 0:01:56.4]} 36.
Bd2 {[%clk 0:03:40.9]} 36... Kc6 {[%clk 0:01:54.1]} 37. b4 {[%clk 0:03:39.8]}
37... Bb6 {[%clk 0:01:39.1]} 38. bxa5 {[%clk 0:03:38.3]} 38... Bd4 {[%clk
0:01:37.6]} 39. Bc3 {[%clk 0:03:35.3]} 39... Kc5 {[%clk 0:01:31.6]} 40. Kd3
{[%clk 0:03:30.3]} 40... Bxc3 {[%clk 0:01:26.8]} 41. Kxc3 {[%clk 0:03:29.3]}
41... Ra6 {[%clk 0:01:24]} 42. Ra1 {[%clk 0:03:26.3]} 42... Ra8 {[%clk
0:01:18.5]} 43. a6 {[%clk 0:03:25.4]} 43... Ra7 {[%clk 0:01:17.2]} 44. Ra5+
{[%clk 0:03:24.2]} 44... Kb6 {[%clk 0:01:14.9]} 45. Kb4 {[%clk 0:03:23.3]} 45...
Rxa6 {[%clk 0:01:12.3]} 46. Rxa6+ {[%clk 0:03:22.3]} 46... Kxa6 {[%clk
0:01:11.6]} 47. c5 {[%clk 0:03:21.7]} 47... dxc5+ {[%clk 0:01:10.7]} 48. Kxc5
{[%clk 0:03:21.6]} 48... Kb7 {[%clk 0:01:09.7]} 49. Kd6 {[%clk 0:03:20.8]} 49...
Kc8 {[%clk 0:01:08.5]} 50. Ke7 {[%clk 0:03:20.1]} 50... Kc7 {[%clk 0:01:07.7]}
51. Kf8 {[%clk 0:03:19.4]} 51... Kd7 {[%clk 0:01:06.5]} 52. Kxg7 {[%clk
0:03:18.7]} 52... Ke6 {[%clk 0:01:05.8]} 53. Kxh6 {[%clk 0:03:17.8]} 53... Kf7
{[%clk 0:01:05.2]} 54. Kh7 {[%clk 0:03:16.8]} 54... Kf8 {[%clk 0:01:03.7]} 55.
Kg6 {[%clk 0:03:16.1]} 1-0

[Event "Live Chess"]
[Site "Chess.com"]
[Date "2024.06.01"]
[Round "-"]
[White "peteopeteo"]
[Black "Stanbad1"]
[Result "0-1"]
[WhiteElo "1593"]
[BlackElo "2667"]
[TimeControl "300"]
[EndTime "13:10:24 PDT"]
[Termination "Stanbad1 won by resignation"]

1. e4 {[%clk 0:04:59.6]} 1... d5 {[%clk 0:04:58.4]} 2. exd5 {[%clk 0:04:58.9]}
2... Qxd5 {[%clk 0:04:58.3]} 3. Nc3 {[%clk 0:04:58]} 3... Qa5 {[%clk 0:04:57.9]}
4. Nf3 {[%clk 0:04:56.6]} 4... Nf6 {[%clk 0:04:57.2]} 5. b4 {[%clk 0:04:54.7]}
5... Qxb4 {[%clk 0:04:52.6]} 6. Nb5 {[%clk 0:04:53.9]} 6... Qa5 {[%clk
0:04:41.7]} 7. Bc4 {[%clk 0:04:53.2]} 7... e6 {[%clk 0:04:40.1]} 8. Bb2 {[%clk
0:04:47.5]} 8... a6 {[%clk 0:04:38.8]} 9. Bc3 {[%clk 0:04:41.3]} 9... Qb6 {[%clk
0:04:34.4]} 10. Bd4 {[%clk 0:04:37.9]} 10... c5 {[%clk 0:04:33.2]} 11. Nc7+
{[%clk 0:04:17]} 11... Qxc7 {[%clk 0:04:31.1]} 12. Be5 {[%clk 0:04:16.5]} 12...
Bd6 {[%clk 0:04:27.8]} 13. d4 {[%clk 0:04:13.6]} 13... cxd4 {[%clk 0:04:25.2]}
14. Bxd4 {[%clk 0:04:05]} 14... Qxc4 {[%clk 0:04:20]} 15. Bxf6 {[%clk
0:03:55.6]} 15... Bb4+ {[%clk 0:04:17.6]} 16. Nd2 {[%clk 0:03:50.8]} 16... gxf6
{[%clk 0:04:14.9]} 17. Rb1 {[%clk 0:03:44.9]} 17... Nc6 {[%clk 0:04:11.7]} 18.
Qe2 {[%clk 0:03:36.7]} 18... Qxe2+ {[%clk 0:04:10.1]} 19. Kxe2 {[%clk
0:03:36.6]} 19... Bxd2 {[%clk 0:04:09.2]} 20. Kxd2 {[%clk 0:03:35.5]} 20... b5
{[%clk 0:04:09.1]} 21. Rbe1 {[%clk 0:03:34.4]} 21... Bb7 {[%clk 0:04:06.7]} 22.
f3 {[%clk 0:03:32.9]} 22... O-O-O+ {[%clk 0:03:58.5]} 23. Kc1 {[%clk 0:03:32.3]}
23... Ne5 {[%clk 0:03:46.9]} 24. Re3 {[%clk 0:03:28.8]} 24... Nc4 {[%clk
0:03:45.2]} 25. Rc3 {[%clk 0:03:27.9]} 25... Kb8 {[%clk 0:03:40.6]} 26. Re1
{[%clk 0:03:25.1]} 26... Rhg8 {[%clk 0:03:39.4]} 27. g4 {[%clk 0:03:23.4]} 27...
Rc8 {[%clk 0:03:38.3]} 28. f4 {[%clk 0:03:17.4]} 28... b4 {[%clk 0:03:35.6]} 29.
Rb3 {[%clk 0:03:16]} 29... a5 {[%clk 0:03:34.3]} 30. a3 {[%clk 0:03:14.7]} 30...
Nxa3 {[%clk 0:03:33.1]} 31. Ree3 {[%clk 0:03:11.2]} 31... Rxc2+ {[%clk
0:03:31.9]} 32. Kd1 {[%clk 0:03:08.9]} 32... Rd8+ {[%clk 0:03:31.4]} 33. Ke1
{[%clk 0:03:07.9]} 33... Rxh2 {[%clk 0:03:28.1]} 34. Rxa3 {[%clk 0:03:06]} 34...
bxa3 {[%clk 0:03:24.1]} 35. Rxa3 {[%clk 0:03:05.9]} 0-1

[Event "Live Chess"]
[Site "Chess.com"]
[Date "2024.06.01"]
[Round "-"]
[White "agamilewska"]
[Black "LanceMaster23"]
[Result "1/2-1/2"]
[WhiteElo "1767"]
[BlackElo "1840"]
[TimeControl "300"]
[EndTime "13:10:39 PDT"]
[Termination "Game drawn by repetition"]

1. d4 {[%clk 0:04:58.1]} 1... Nf6 {[%clk 0:04:58.3]} 2. c4 {[%clk 0:04:56.9]}
2... e6 {[%clk 0:04:50.1]} 3. Nc3 {[%clk 0:04:55.2]} 3... Bb4 {[%clk 0:04:45.9]}
4. Nf3 {[%clk 0:04:35.3]} 4... c5 {[%clk 0:04:43.6]} 5. e3 {[%clk 0:04:32]} 5...
O-O {[%clk 0:04:40.3]} 6. Be2 {[%clk 0:04:31.1]} 6... d5 {[%clk 0:04:38.1]} 7.
dxc5 {[%clk 0:04:24.6]} 7... Nc6 {[%clk 0:03:35.5]} 8. O-O {[%clk 0:04:14.8]}
8... a6 {[%clk 0:03:07.6]} 9. cxd5 {[%clk 0:03:57.1]} 9... Nxd5 {[%clk
0:02:35.6]} 10. Nxd5 {[%clk 0:03:53]} 10... exd5 {[%clk 0:02:29]} 11. a3 {[%clk
0:03:36.7]} 11... Bxc5 {[%clk 0:02:21.5]} 12. b4 {[%clk 0:03:36]} 12... Be7
{[%clk 0:02:18]} 13. Bb2 {[%clk 0:03:34.7]} 13... Be6 {[%clk 0:02:11.5]} 14. Rc1
{[%clk 0:03:33.6]} 14... Bf6 {[%clk 0:02:06.9]} 15. Nd4 {[%clk 0:03:26.7]} 15...
Nxd4 {[%clk 0:01:54.5]} 16. Bxd4 {[%clk 0:03:25.7]} 16... Bxd4 {[%clk
0:01:25.5]} 17. Qxd4 {[%clk 0:03:25.6]} 17... Qe7 {[%clk 0:01:23]} 18. Bf3
{[%clk 0:03:21.8]} 18... Rfd8 {[%clk 0:01:20.4]} 19. h3 {[%clk 0:03:20.6]} 19...
h6 {[%clk 0:01:17.8]} 20. Rc5 {[%clk 0:03:16.4]} 20... Qd7 {[%clk 0:00:58]} 21.
Rfc1 {[%clk 0:03:12.8]} 21... Rac8 {[%clk 0:00:56.2]} 22. Rxc8 {[%clk
0:03:01.3]} 22... Rxc8 {[%clk 0:00:56.1]} 23. Rxc8+ {[%clk 0:02:56.7]} 23...
Qxc8 {[%clk 0:00:56]} 24. Bxd5 {[%clk 0:02:51.9]} 24... Qc1+ {[%clk 0:00:55]}
25. Kh2 {[%clk 0:02:50.6]} 25... Qxa3 {[%clk 0:00:41.3]} 26. Bxe6 {[%clk
0:02:48.8]} 26... fxe6 {[%clk 0:00:39.4]} 27. Qd8+ {[%clk 0:02:42.8]} 27... Kh7
{[%clk 0:00:38.9]} 28. Qd6 {[%clk 0:02:35.9]} 28... a5 {[%clk 0:00:34.8]} 29.
Qxe6 {[%clk 0:02:31.2]} 29... Qxb4 {[%clk 0:00:34.4]} 30. Qf5+ {[%clk
0:02:28.6]} 30... Kg8 {[%clk 0:00:34.1]} 31. Qc8+ {[%clk 0:02:22.6]} 31... Kh7
{[%clk 0:00:33.3]} 32. Qf5+ {[%clk 0:02:20.9]} 32... Kg8 {[%clk 0:00:33]} 33.
Qc8+ {[%clk 0:02:19.3]} 33... Kf7 {[%clk 0:00:32.7]} 34. Qd7+ {[%clk 0:02:15.7]}
34... Qe7 {[%clk 0:00:32.3]} 35. Qd5+ {[%clk 0:02:13.4]} 35... Kf8 {[%clk
0:00:29.2]} 36. Qxa5 {[%clk 0:02:06.6]} 36... Qd6+ {[%clk 0:00:28.9]} 37. g3
{[%clk 0:02:03.5]} 37... Qf6 {[%clk 0:00:28.6]} 38. Qc5+ {[%clk 0:01:56.3]}
38... Kg8 {[%clk 0:00:27.6]} 39. Qd5+ {[%clk 0:01:52]} 39... Kh7 {[%clk
0:00:27.2]} 40. Qxb7 {[%clk 0:01:37]} 40... Qxf2+ {[%clk 0:00:25.5]} 41. Qg2
{[%clk 0:01:33.8]} 41... Qxe3 {[%clk 0:00:24]} 42. Qc2+ {[%clk 0:01:31.3]} 42...
Kg8 {[%clk 0:00:22]} 43. h4 {[%clk 0:01:27]} 43... Kf7 {[%clk 0:00:20.4]} 44.
Qc4+ {[%clk 0:01:25.1]} 44... Qe6 {[%clk 0:00:19.1]} 45. Qf4+ {[%clk 0:01:20.6]}
45... Qf6 {[%clk 0:00:18.3]} 46. Qc7+ {[%clk 0:01:19.6]} 46... Kg6 {[%clk
0:00:18.2]} 47. Kg2 {[%clk 0:01:08.9]} 47... Qf5 {[%clk 0:00:16.6]} 48. Qd6+
{[%clk 0:01:02.7]} 48... Qf6 {[%clk 0:00:16.2]} 49. Qxf6+ {[%clk 0:00:55.2]}
49... Kxf6 {[%clk 0:00:15.5]} 50. Kf3 {[%clk 0:00:54.5]} 50... Kg6 {[%clk
0:00:15.4]} 51. Kg4 {[%clk 0:00:53.1]} 51... Kf6 {[%clk 0:00:15.3]} 52. Kf4
{[%clk 0:00:48.8]} 52... Kg6 {[%clk 0:00:15.2]} 53. Kg4 {[%clk 0:00:47.3]} 53...
Kf6 {[%clk 0:00:15.1]} 54. Kf4 {[%clk 0:00:46.6]} 54... Kg6 {[%clk 0:00:15]} 55.
Kg4 {[%clk 0:00:45.9]} 1/2-1/2

[Event "Live Chess"]
[Site "Chess.com"]
[Date "2024.06.01"]
[Round "-"]
[White "jimwad"]
[Black "Tushinskiy"]
[Result "0-1"]
[WhiteElo "1269"]
[BlackElo "2268"]
[TimeControl "300"]
[EndTime "13:10:41 PDT"]
[Termination "Tushinskiy won by resignation"]

1. d4 {[%clk 0:04:58.7]} 1... d5 {[%clk 0:04:58.2]} 2. c4 {[%clk 0:04:57.8]}
2... c6 {[%clk 0:04:58.1]} 3. Nc3 {[%clk 0:04:56.1]} 3... Nf6 {[%clk 0:04:56.9]}
4. Bf4 {[%clk 0:04:54.7]} 4... e6 {[%clk 0:04:47.7]} 5. e3 {[%clk 0:04:53.4]}
5... Bd6 {[%clk 0:04:46.7]} 6. Bg5 {[%clk 0:04:49.6]} 6... Nbd7 {[%clk
0:04:45.2]} 7. Nf3 {[%clk 0:04:48.1]} 7... Qe7 {[%clk 0:04:43.7]} 8. c5 {[%clk
0:04:45.5]} 8... Bb8 {[%clk 0:04:41.9]} 9. Ne5 {[%clk 0:04:37.4]} 9... Nxe5
{[%clk 0:04:40.3]} 10. dxe5 {[%clk 0:04:35.2]} 10... Bxe5 {[%clk 0:04:40.2]} 11.
b4 {[%clk 0:04:30.7]} 11... Bxc3+ {[%clk 0:04:38.7]} 0-1

[Event "Live Chess"]
[Site "Chess.com"]
[Date "2024.06.01"]
[Round "-"]
[White "GoldsmanB"]
[Black "MagnersCarlsberg2870"]
[Result "0-1"]
[WhiteElo "1088"]
[BlackElo "1805"]
[TimeControl "300"]
[EndTime "13:10:48 PDT"]
[Termination "MagnersCarlsberg2870 won by resignation"]

1. d4 {[%clk 0:04:58.2]} 1... Nf6 {[%clk 0:04:58.9]} 2. c4 {[%clk 0:04:56.7]}
2... e5 {[%clk 0:04:58]} 3. dxe5 {[%clk 0:04:53.8]} 3... Ng4 {[%clk 0:04:57]} 4.
Nf3 {[%clk 0:04:48.4]} 4... Nc6 {[%clk 0:04:55.6]} 5. Nc3 {[%clk 0:04:46.3]}
5... Ngxe5 {[%clk 0:04:51.7]} 6. Nxe5 {[%clk 0:04:44.5]} 6... Nxe5 {[%clk
0:04:50.5]} 7. e4 {[%clk 0:04:41.3]} 7... Bb4 {[%clk 0:04:47.2]} 8. Bd2 {[%clk
0:04:38.4]} 8... d6 {[%clk 0:04:46.1]} 9. f4 {[%clk 0:04:36.8]} 9... Ng4 {[%clk
0:04:41.5]} 10. Be2 {[%clk 0:04:31.5]} 10... h5 {[%clk 0:04:38]} 11. h3 {[%clk
0:04:29.9]} 11... Nf6 {[%clk 0:04:36.6]} 12. a3 {[%clk 0:04:25.9]} 12... Bxc3
{[%clk 0:04:35.5]} 13. Bxc3 {[%clk 0:04:23.4]} 13... Nxe4 {[%clk 0:04:30.8]} 14.
Qd3 {[%clk 0:04:12.5]} 14... Qh4+ {[%clk 0:04:20.5]} 15. Kd1 {[%clk 0:04:00.5]}
15... Nf2+ {[%clk 0:04:18.6]} 0-1

[Event "Live Chess"]
[Site "Chess.com"]
[Date "2024.06.01"]
[Round "-"]
[White "Thebigsqueeze"]
[Black "Inglaterra"]
[Result "1-0"]
[WhiteElo "2301"]
[BlackElo "2043"]
[TimeControl "300"]
[EndTime "13:10:58 PDT"]
[Termination "Thebigsqueeze won by resignation"]

1. d4 {[%clk 0:04:53.8]} 1... d5 {[%clk 0:04:58.6]} 2. Nf3 {[%clk 0:04:50.2]}
2... e6 {[%clk 0:04:57.8]} 3. g3 {[%clk 0:04:49]} 3... Nf6 {[%clk 0:04:57.3]} 4.
Bg2 {[%clk 0:04:48.2]} 4... b5 {[%clk 0:04:56]} 5. O-O {[%clk 0:04:47.2]} 5...
Be7 {[%clk 0:04:55.1]} 6. b3 {[%clk 0:04:44.4]} 6... O-O {[%clk 0:04:53.9]} 7.
c4 {[%clk 0:04:43.1]} 7... c6 {[%clk 0:04:48.7]} 8. Nc3 {[%clk 0:04:35.7]} 8...
a6 {[%clk 0:04:34.1]} 9. Ne5 {[%clk 0:04:32.8]} 9... Nfd7 {[%clk 0:04:29.2]} 10.
e4 {[%clk 0:04:12.3]} 10... Nxe5 {[%clk 0:04:26.3]} 11. exd5 {[%clk 0:03:53.8]}
11... bxc4 {[%clk 0:04:14.9]} 12. dxe5 {[%clk 0:03:47.6]} 12... exd5 {[%clk
0:04:04.8]} 13. bxc4 {[%clk 0:03:45.3]} 13... d4 {[%clk 0:03:59.7]} 14. Ne2
{[%clk 0:03:40]} 14... Be6 {[%clk 0:03:51.4]} 15. Qxd4 {[%clk 0:03:33.8]} 15...
Qxd4 {[%clk 0:03:46.4]} 16. Nxd4 {[%clk 0:03:32.4]} 16... Bxc4 {[%clk
0:03:45.9]} 17. Rd1 {[%clk 0:03:27.6]} 17... Bd5 {[%clk 0:03:41.5]} 18. Bxd5
{[%clk 0:03:22.3]} 18... cxd5 {[%clk 0:03:41.4]} 19. Nf5 {[%clk 0:03:20.2]}
19... Re8 {[%clk 0:03:29.8]} 20. Rxd5 {[%clk 0:03:17.2]} 20... Nc6 {[%clk
0:03:29]} 21. Nxe7+ {[%clk 0:03:12.4]} 21... Rxe7 {[%clk 0:03:22.5]} 22. f4
{[%clk 0:03:11.7]} 22... f6 {[%clk 0:03:16.1]} 23. exf6 {[%clk 0:03:09.2]} 23...
Re1+ {[%clk 0:03:11.5]} 24. Kf2 {[%clk 0:03:06.7]} 24... Rae8 {[%clk 0:03:11.1]}
25. fxg7 {[%clk 0:02:58.4]} 25... Nb4 {[%clk 0:03:00.4]} 26. Rd2 {[%clk
0:02:50.6]} 26... Rh1 {[%clk 0:02:53.1]} 27. Kg2 {[%clk 0:02:45.7]} 27... Rhe1
{[%clk 0:02:50.3]} 28. Kh3 {[%clk 0:02:27.2]} 28... R1e2 {[%clk 0:02:29]} 29.
Rxe2 {[%clk 0:02:23.2]} 29... Rxe2 {[%clk 0:02:28.9]} 30. a3 {[%clk 0:02:16.6]}
30... Nd3 {[%clk 0:02:23]} 31. Rb1 {[%clk 0:02:11.8]} 31... Kxg7 {[%clk
0:02:12.5]} 32. Rb7+ {[%clk 0:02:03.1]} 32... Kg8 {[%clk 0:02:11.3]} 33. Rc7
{[%clk 0:01:55.1]} 33... Nf2+ {[%clk 0:01:57.9]} 34. Kh4 {[%clk 0:01:52.6]}
34... Nd3 {[%clk 0:01:51.1]} 35. h3 {[%clk 0:01:45.8]} 35... Ra2 {[%clk
0:01:37.8]} 36. Rc3 {[%clk 0:01:37.7]} 36... Nxc1 {[%clk 0:01:33]} 37. Rxc1
{[%clk 0:01:35]} 37... Rxa3 {[%clk 0:01:32.6]} 38. f5 {[%clk 0:01:33.3]} 38...
Rb3 {[%clk 0:01:22.8]} 39. g4 {[%clk 0:01:31.7]} 39... a5 {[%clk 0:01:19.5]} 40.
g5 {[%clk 0:01:28.5]} 40... a4 {[%clk 0:01:09.8]} 41. Rc8+ {[%clk 0:01:26.1]}
41... Kf7 {[%clk 0:01:07.5]} 42. Rc7+ {[%clk 0:01:25.7]} 42... Kg8 {[%clk
0:01:06.5]} 43. Ra7 {[%clk 0:01:24.2]} 43... a3 {[%clk 0:01:04.6]} 44. f6 {[%clk
0:01:20.3]} 44... Rb4+ {[%clk 0:00:56.1]} 45. Kh5 {[%clk 0:01:18.8]} 45... Rb3
{[%clk 0:00:54.2]} 46. h4 {[%clk 0:01:17.6]} 46... Rc3 {[%clk 0:00:45.2]} 47.
Kh6 {[%clk 0:01:06.8]} 47... Rc4 {[%clk 0:00:44]} 48. h5 {[%clk 0:01:05.3]}
48... Rc3 {[%clk 0:00:38.6]} 49. Rxh7 {[%clk 0:01:01]} 49... a2 {[%clk
0:00:31.5]} 50. Ra7 {[%clk 0:00:48.2]} 50... Rc2 {[%clk 0:00:22]} 51. g6 {[%clk
0:00:45.8]} 1-0

[Event "Live Chess"]
[Site "Chess.com"]
[Date "2024.06.01"]
[Round "-"]
[White "TJ-W"]
[Black "Tyslcab"]
[Result "1/2-1/2"]
[WhiteElo "1562"]
[BlackElo "1416"]
[TimeControl "300"]
[EndTime "13:11:07 PDT"]
[Termination "Game drawn - insufficient material"]

1. e4 {[%clk 0:04:58.7]} 1... d5 {[%clk 0:04:57.9]} 2. exd5 {[%clk 0:04:50.9]}
2... Nf6 {[%clk 0:04:56]} 3. d4 {[%clk 0:04:49]} 3... Bg4 {[%clk 0:04:51.8]} 4.
Be2 {[%clk 0:04:41]} 4... Bxe2 {[%clk 0:04:50.5]} 5. Nxe2 {[%clk 0:04:37.9]}
5... Qxd5 {[%clk 0:04:48.9]} 6. O-O {[%clk 0:04:30.7]} 6... Nc6 {[%clk
0:04:39.1]} 7. Nbc3 {[%clk 0:04:27.2]} 7... Qh5 {[%clk 0:04:33.9]} 8. Ng3 {[%clk
0:04:19.7]} 8... Qxd1 {[%clk 0:04:31]} 9. Rxd1 {[%clk 0:04:19.6]} 9... O-O-O
{[%clk 0:04:25.8]} 10. Be3 {[%clk 0:04:13.7]} 10... e6 {[%clk 0:04:21]} 11. a4
{[%clk 0:04:10.1]} 11... Bd6 {[%clk 0:04:09]} 12. a5 {[%clk 0:04:05]} 12... a6
{[%clk 0:04:06.7]} 13. d5 {[%clk 0:04:00.6]} 13... exd5 {[%clk 0:03:59.1]} 14.
Nxd5 {[%clk 0:03:49.6]} 14... Bxg3 {[%clk 0:03:53.5]} 15. Nxf6 {[%clk 0:03:39]}
15... Bxh2+ {[%clk 0:03:46.8]} 16. Kxh2 {[%clk 0:03:34.5]} 16... gxf6 {[%clk
0:03:45.8]} 17. Rxd8+ {[%clk 0:03:23.8]} 17... Rxd8 {[%clk 0:03:43.3]} 18. Ra4
{[%clk 0:03:13]} 18... Rd5 {[%clk 0:03:19.7]} 19. Rf4 {[%clk 0:03:04.8]} 19...
Rxa5 {[%clk 0:03:08.9]} 20. Rxf6 {[%clk 0:02:59.6]} 20... Rh5+ {[%clk
0:03:06.7]} 21. Kg3 {[%clk 0:02:56.3]} 21... Ne5 {[%clk 0:03:03]} 22. Bd4 {[%clk
0:02:38.4]} 22... Rg5+ {[%clk 0:02:32.9]} 23. Kh3 {[%clk 0:02:27.7]} 23... Nc6
{[%clk 0:02:25.8]} 24. Be3 {[%clk 0:02:18.5]} 24... Rb5 {[%clk 0:02:15.5]} 25.
b3 {[%clk 0:02:15.7]} 25... Nd8 {[%clk 0:02:07]} 26. Rh6 {[%clk 0:02:09.8]}
26... Kd7 {[%clk 0:01:55.5]} 27. Rxh7 {[%clk 0:02:06.7]} 27... Ke6 {[%clk
0:01:50]} 28. Rh8 {[%clk 0:01:59.9]} 28... Nc6 {[%clk 0:01:47.9]} 29. Re8+
{[%clk 0:01:56.8]} 29... Kd7 {[%clk 0:01:44.5]} 30. Re4 {[%clk 0:01:53.2]} 30...
f5 {[%clk 0:01:36.1]} 31. Rh4 {[%clk 0:01:46.2]} 31... Rb4 {[%clk 0:01:30.7]}
32. Rxb4 {[%clk 0:01:39.9]} 32... Nxb4 {[%clk 0:01:29.8]} 33. c3 {[%clk
0:01:35.3]} 33... Nd5 {[%clk 0:01:28]} 34. Bd4 {[%clk 0:01:34.6]} 34... b6
{[%clk 0:01:23.3]} 35. g4 {[%clk 0:01:31.8]} 35... fxg4+ {[%clk 0:01:21]} 36.
Kxg4 {[%clk 0:01:29.4]} 36... c5 {[%clk 0:01:19.9]} 37. Bh8 {[%clk 0:01:24.2]}
37... Ke6 {[%clk 0:01:18.6]} 38. f4 {[%clk 0:01:21.2]} 38... b5 {[%clk
0:01:12.7]} 39. f5+ {[%clk 0:01:18.9]} 39... Kf7 {[%clk 0:01:11.4]} 40. Kg5
{[%clk 0:01:13.9]} 40... a5 {[%clk 0:01:04.3]} 41. c4 {[%clk 0:01:06.7]} 41...
bxc4 {[%clk 0:01:01.1]} 42. bxc4 {[%clk 0:01:06.6]} 42... Nb6 {[%clk 0:00:55]}
43. Bc3 {[%clk 0:01:00.8]} 43... Nxc4 {[%clk 0:00:53.1]} 44. Kf4 {[%clk
0:00:56.9]} 44... a4 {[%clk 0:00:48.6]} 45. Ke4 {[%clk 0:00:54.2]} 45... a3
{[%clk 0:00:45.7]} 46. Kd5 {[%clk 0:00:51.4]} 46... Ne3+ {[%clk 0:00:38.9]} 47.
Kxc5 {[%clk 0:00:49.3]} 47... Nxf5 {[%clk 0:00:36.9]} 48. Kb4 {[%clk 0:00:48.1]}
48... a2 {[%clk 0:00:35.8]} 49. Kb3 {[%clk 0:00:47.1]} 49... a1=Q {[%clk
0:00:33.7]} 50. Bxa1 {[%clk 0:00:45.3]} 1/2-1/2

[Event "Live Chess"]
[Site "Chess.com"]
[Date "2024.06.01"]
[Round "-"]
[White "Grace6363"]
[Black "NottheBishopSacrifice"]
[Result "0-1"]
[WhiteElo "1149"]
[BlackElo "2247"]
[TimeControl "300"]
[EndTime "13:11:09 PDT"]
[Termination "NottheBishopSacrifice won by resignation"]

1. d4 {[%clk 0:04:56.6]} 1... d5 {[%clk 0:04:58.5]} 2. c4 {[%clk 0:04:53.8]}
2... e6 {[%clk 0:04:58.1]} 3. Nf3 {[%clk 0:04:51.7]} 3... Nf6 {[%clk 0:04:57.4]}
4. cxd5 {[%clk 0:04:48]} 4... exd5 {[%clk 0:04:56]} 5. a3 {[%clk 0:04:47.5]}
5... Be7 {[%clk 0:04:55.3]} 6. Nc3 {[%clk 0:04:46.9]} 6... O-O {[%clk
0:04:54.8]} 7. Bf4 {[%clk 0:04:46.1]} 7... c6 {[%clk 0:04:54.1]} 8. e3 {[%clk
0:04:45.5]} 8... Nbd7 {[%clk 0:04:52.9]} 9. Be2 {[%clk 0:04:44.9]} 9... Re8
{[%clk 0:04:52.6]} 10. O-O {[%clk 0:04:44.2]} 10... Nf8 {[%clk 0:04:52.2]} 11.
Qc2 {[%clk 0:04:43.6]} 11... Ng6 {[%clk 0:04:51.2]} 12. Bd3 {[%clk 0:04:40]}
12... Nxf4 {[%clk 0:04:49.5]} 13. exf4 {[%clk 0:04:39.3]} 13... h6 {[%clk
0:04:44.7]} 14. Ne5 {[%clk 0:04:37.5]} 14... Ng4 {[%clk 0:04:41.9]} 15. Bh7+
{[%clk 0:04:25.9]} 15... Kf8 {[%clk 0:04:38.5]} 16. Nxg4 {[%clk 0:04:18.4]}
16... Bxg4 {[%clk 0:04:35.5]} 17. Bf5 {[%clk 0:04:16.7]} 17... Bxf5 {[%clk
0:04:33.8]} 18. Qxf5 {[%clk 0:04:16.1]} 18... Kg8 {[%clk 0:04:31.6]} 19. Rae1
{[%clk 0:04:14.3]} 19... Bf6 {[%clk 0:04:29.4]} 20. Qd3 {[%clk 0:04:08.6]} 20...
Qd6 {[%clk 0:04:28.3]} 21. g3 {[%clk 0:04:05.6]} 21... a5 {[%clk 0:04:25.9]} 22.
Na4 {[%clk 0:03:55.5]} 22... g6 {[%clk 0:04:14.8]} 23. Nb6 {[%clk 0:03:51.6]}
23... Rad8 {[%clk 0:04:13.1]} 24. f5 {[%clk 0:03:42.2]} 24... Kg7 {[%clk
0:04:08.8]} 25. fxg6 {[%clk 0:03:41.1]} 25... fxg6 {[%clk 0:04:08.7]} 26. f4
{[%clk 0:03:32.7]} 26... Qc7 {[%clk 0:04:05.8]} 27. Na4 {[%clk 0:03:25.9]} 27...
Qf7 {[%clk 0:04:01.8]} 28. Nc5 {[%clk 0:03:23.2]} 28... b6 {[%clk 0:03:58.4]}
29. Rxe8 {[%clk 0:03:09.2]} 29... Rxe8 {[%clk 0:03:56.6]} 30. Nb3 {[%clk
0:02:59.1]} 30... Re4 {[%clk 0:03:54.9]} 31. Nd2 {[%clk 0:02:51.9]} 31... Rxd4
{[%clk 0:03:51.7]} 32. Qc3 {[%clk 0:02:42.5]} 32... c5 {[%clk 0:03:43.2]} 33.
Rf2 {[%clk 0:02:37.5]} 33... Re4 {[%clk 0:03:33.3]} 34. Qc2 {[%clk 0:02:28.8]}
34... Re1+ {[%clk 0:03:31.7]} 35. Kg2 {[%clk 0:02:27.1]} 35... Bd4 {[%clk
0:03:29.5]} 36. Rf1 {[%clk 0:02:18.3]} 36... Re2+ {[%clk 0:03:27.6]} 37. Kf3
{[%clk 0:02:07]} 37... Rxh2 {[%clk 0:03:25.5]} 38. Qd3 {[%clk 0:01:55.1]} 38...
Qf5 {[%clk 0:03:23.6]} 39. Qxf5 {[%clk 0:01:35.7]} 39... gxf5 {[%clk 0:03:23.5]}
40. Nb3 {[%clk 0:01:32.1]} 40... Rxb2 {[%clk 0:03:20.8]} 41. Nxd4 {[%clk
0:01:30.9]} 41... cxd4 {[%clk 0:03:20.7]} 42. Rd1 {[%clk 0:01:29.9]} 42... Rb3+
{[%clk 0:03:19.9]} 43. Kf2 {[%clk 0:01:26.5]} 43... d3 {[%clk 0:03:18.9]} 44.
Ke1 {[%clk 0:01:18.6]} 44... Rxa3 {[%clk 0:03:17.9]} 45. Kd2 {[%clk 0:01:16.8]}
45... Rb3 {[%clk 0:03:16.4]} 46. Rc1 {[%clk 0:01:15.8]} 46... a4 {[%clk
0:03:15.3]} 47. Rc7+ {[%clk 0:01:12.3]} 47... Kg6 {[%clk 0:03:13.6]} 48. Rd7
{[%clk 0:01:10.4]} 48... a3 {[%clk 0:03:11.7]} 49. Rxd5 {[%clk 0:01:08.2]} 49...
a2 {[%clk 0:03:09.4]} 50. Rd6+ {[%clk 0:01:04.5]} 50... Kh5 {[%clk 0:03:08.1]}
0-1